fUSD/lending_fUSD_20241221
["ID","MTS","AMOUNT","RATE_DAILY","PERIOD"]
[346170539,1734763867937,-2527.65,0.00020547,2]
[346170540,1734763867946,-500.0,0.00020547,2]
[346170541,1734763867955,-947.44,0.00020547,2]
[346170542,1734763867964,-944.1,0.00020547,2]
[346170543,1734763867974,-500.0,0.00020547,2]
[346170544,1734763867983,-500.0,0.00020547,2]
[346170545,1734763867993,-500.0,0.00020547,2]
[346170546,1734763868002,-500.0,0.00020547,2]
[346170547,1734763868013,-500.0,0.00020547,2]
[346170548,1734763868023,-500.0,0.00020547,2]
[346170549,1734763868032,-861.65,0.00020547,2]
[346170550,1734763868041,-500.0,0.00020547,2]
[346170551,1734763868051,-540.73,0.00020547,2]
[346170552,1734763868061,-572.84,0.00020547,2]
[346170553,1734763868073,-582.48,0.00020547,2]
[346170554,1734763868082,-588.74,0.00020547,2]
[346170555,1734763868091,-500.0,0.00020547,2]
[346170556,1734763868100,-703.48,0.00020547,2]
[346170557,1734763868110,-500.0,0.00020547,2]
[346170558,1734763868119,-500.0,0.00020547,2]
[346170559,1734763868128,-901.63,0.00020547,2]
[346170560,1734763868138,-997.55,0.00020547,2]
[346170561,1734763868147,-799.68,0.00020547,2]
[346170562,1734763868157,-500.0,0.00020547,2]
[346170563,1734763868166,-536.69678404,0.00020547,2]
[346170564,1734763868175,-561.21,0.00020547,2]
[346170565,1734763868184,-1229.39,0.00020547,2]
[346170566,1734763868193,-500.0,0.00020547,2]
[346170567,1734763868203,-632.53,0.00020547,2]
[346170568,1734763868212,-1931.34,0.00020547,2]
[346170569,1734763868221,-500.0,0.00020547,2]
[346170570,1734763868231,-1470.44,0.00020547,2]
[346170571,1734763868240,-500.0,0.00020547,2]
[346170572,1734763868251,-500.0,0.00020547,2]
[346170573,1734763868262,-500.0,0.00020547,2]
[346170574,1734763868272,-736.6,0.00020547,2]
[346170575,1734763868282,-500.0,0.00020547,2]
[346170576,1734763868291,-703.2,0.00020547,2]
[346170577,1734763868303,-500.0,0.00020547,2]
[346170578,1734763868313,-1406.58,0.00020547,2]
[346170579,1734763868326,-1544.85,0.00020547,2]
[346170580,1734763868338,-527.37320604,0.00020547,2]
[346170581,1734763868347,-665.66,0.00020547,2]
[346170582,1734763868357,-514.28,0.00020547,2]
[346170583,1734763868366,-500.0,0.00020547,2]
[346170584,1734763868375,-795.88,0.00020547,2]
[346170585,1734763868384,-164.00325618,0.00020547,2]
[346170586,1734763868393,-500.0,0.00020547,2]
[346170587,1734763868402,-761.21,0.00020547,2]
[346170588,1734763868412,-1739.03,0.00020547,2]
[346170589,1734763868421,-702.19,0.00020547,2]
[346170590,1734763868430,-1021.76,0.00020547,2]
[346170591,1734763868439,-500.0,0.00020547,2]
[346170592,1734763868448,-500.0,0.00020547,2]
[346170593,1734763868457,-632.20989142,0.00020547,2]
[346170594,1734763868467,-500.0,0.00020547,2]
[346170595,1734763868475,-500.0,0.00020547,2]
[346170596,1734763868484,-859.2,0.00020547,2]
[346170597,1734763868494,-1193.73,0.00020547,2]
[346170598,1734763868503,-500.0,0.00020547,2]
[346170599,1734763868513,-500.0,0.00020547,2]
[346170600,1734763868522,-632.4,0.00020547,2]
[346170601,1734763868531,-2294.66,0.00020547,2]
[346170602,1734763868541,-806.9,0.00020547,2]
[346170603,1734763868550,-1021.18,0.00020547,2]
[346170604,1734763868560,-1013.35,0.00020547,2]
[346170605,1734763868571,-500.0,0.00020547,2]
[346170606,1734763868580,-632.58,0.00020547,2]
[346170607,1734763868590,-2927.04,0.00020547,2]
[346170608,1734763868599,-500.0,0.00020547,2]
[346170609,1734763868609,-518.58,0.00020547,2]
[346170610,1734763868618,-647.88,0.00020547,2]
[346170611,1734763868628,-4561.25,0.00020547,2]
[346170612,1734763868637,-500.0,0.00020547,2]
[346170613,1734763868647,-872.93,0.00020547,2]
[346170614,1734763868656,-885.58,0.00020547,2]
[346170615,1734763868665,-1603.4,0.00020547,2]
[346170616,1734763868674,-500.0,0.00020547,2]
[346170617,1734763868683,-1346.86,0.00020547,2]
[346170618,1734763868693,-500.0,0.00020547,2]
[346170619,1734763868703,-500.0,0.00020547,2]
[346170620,1734763868712,-763.45,0.00020547,2]
[346170621,1734763868721,-984.85,0.00020547,2]
[346170622,1734763868731,-500.0,0.00020547,2]
[346170623,1734763868740,-873.04,0.00020547,2]
[346170624,1734763868750,-500.0,0.00020547,2]
[346170625,1734763868760,-500.0,0.00020547,2]
[346170626,1734763868769,-620.97,0.00020547,2]
[346170627,1734763868779,-733.9,0.00020547,2]
[346170628,1734763868788,-500.0,0.00020547,2]
[346170629,1734763868798,-1060.44,0.00020547,2]
[346170630,1734763868808,-1223.12,0.00020547,2]
[346170631,1734763868820,-509.45678573,0.00020547,2]
[346170632,1734763868829,-500.0,0.00020547,2]
[346170633,1734763868838,-633.71,0.00020547,2]
[346170634,1734763868848,-1063.84,0.00020547,2]
[346170635,1734763868857,-500.0,0.00020547,2]
[346170636,1734763868867,-500.0,0.00020547,2]
[346170637,1734763868877,-6034.63,0.00020547,2]
[346170638,1734763868886,-842.49,0.00020547,2]
[346170639,1734763868896,-500.0,0.00020547,2]
[346170640,1734763868906,-500.0,0.00020547,2]
[346170641,1734763868915,-7492.81,0.00020547,2]
[346170642,1734763868925,-500.0,0.00020547,2]
[346170643,1734763868935,-500.0,0.00020547,2]
[346170644,1734763868944,-744.03,0.00020547,2]
[346170645,1734763868955,-946.91,0.00020547,2]
[346170646,1734763868964,-512.74,0.00020547,2]
[346170647,1734763868974,-894.54,0.00020547,2]
[346170648,1734763868983,-500.0,0.00020547,2]
[346170649,1734763868993,-630.38,0.00020547,2]
[346170650,1734763869003,-513.14,0.00020547,2]
[346170651,1734763869014,-569.68,0.00020547,2]
[346170652,1734763869024,-500.0,0.00020547,2]
[346170653,1734763869034,-2074.71,0.00020547,2]
[346170654,1734763869043,-1539.27,0.00020547,2]
[346170655,1734763869052,-500.0,0.00020547,2]
[346170656,1734763869062,-860.01,0.00020547,2]
[346170657,1734763869074,-925.87,0.00020547,2]
[346170658,1734763869084,-500.0,0.00020547,2]
[346170659,1734763869093,-2324.7,0.00020547,2]
[346170660,1734763869103,-500.0,0.00020547,2]
[346170661,1734763869113,-527.59382109,0.00020547,2]
[346170662,1734763869123,-1111.8,0.00020547,2]
[346170663,1734763869133,-500.0,0.00020547,2]
[346170664,1734763869143,-500.0,0.00020547,2]
[346170665,1734763869152,-503.17010746,0.00020547,2]
[346170666,1734763869162,-500.0,0.00020547,2]
[346170667,1734763869171,-2018.78,0.00020547,2]
[346170668,1734763869181,-905.69,0.00020548,2]
[346170669,1734763869191,-180.8356751,0.00020551,2]
[346170670,1734763869201,-700.0,0.00020614,2]
[346170671,1734763869210,-500.0,0.00020614,2]
[346170672,1734763869220,-150.0,0.00020619,4]
[346170673,1734763869230,-284.11,0.00020635,2]
[346170674,1734763869239,-150.0,0.00020694,4]
[346170675,1734763869249,-2722.18434235,0.00020738,2]
[346170676,1734763869261,-150.0,0.00020806,4]
[346170677,1734763869270,-500.0,0.0002082,2]
[346170678,1734763869280,-500.0,0.0002082,2]
[346170679,1734763869289,-787.7,0.0002082,2]
[346170680,1734763869299,-639.32290156,0.0002082,2]
[346170681,1734763869308,-500.0,0.0002082,2]
[346170682,1734763869320,-722.15,0.0002082,2]
[346170683,1734763869330,-598.48,0.0002082,2]
[346170684,1734763869340,-589.12,0.0002082,2]
[346170685,1734763869350,-746.52,0.0002082,2]
[346170686,1734763869360,-500.0,0.0002082,2]
[346170687,1734763869370,-500.0,0.0002082,2]
[346170688,1734763869379,-500.0,0.0002082,2]
[346170689,1734763869389,-500.0,0.0002082,2]
[346170690,1734763869398,-579.24,0.0002082,2]
[346170691,1734763869408,-500.0,0.0002082,2]
[346170692,1734763869417,-709.84,0.0002082,2]
[346170693,1734763869427,-704.07,0.0002082,2]
[346170694,1734763869437,-656.8,0.0002082,2]
[346170695,1734763869447,-772.15,0.0002082,2]
[346170696,1734763869458,-500.0,0.0002082,2]
[346170697,1734763869467,-500.0,0.0002082,2]
[346170698,1734763869477,-500.0,0.0002082,2]
[346170699,1734763869487,-500.0,0.0002082,2]
[346170700,1734763869497,-500.0,0.0002082,2]
[346170701,1734763869506,-1124.77,0.0002082,2]
[346170702,1734763869516,-512.85,0.0002082,2]
[346170703,1734763869526,-1044.57,0.0002082,2]
[346170704,1734763869535,-577.68,0.0002082,2]
[346170705,1734763869545,-500.0,0.0002082,2]
[346170706,1734763869555,-500.0,0.0002082,2]
[346170707,1734763869566,-687.33,0.0002082,2]
[346170708,1734763869577,-727.24,0.0002082,2]
[346170709,1734763869587,-500.0,0.0002082,2]
[346170710,1734763869596,-500.0,0.0002082,2]
[346170711,1734763869606,-671.56,0.0002082,2]
[346170712,1734763869616,-500.0,0.0002082,2]
[346170713,1734763869626,-500.0,0.0002082,2]
[346170714,1734763869640,-604.9,0.0002082,2]
[346170715,1734763869650,-500.0,0.0002082,2]
[346170716,1734763869660,-503.11,0.0002082,2]
[346170717,1734763869671,-500.0,0.0002082,2]
[346170718,1734763869681,-648.38,0.0002082,2]
[346170719,1734763869691,-500.0,0.0002082,2]
[346170720,1734763869701,-500.0,0.0002082,2]
[346170721,1734763869711,-534.85,0.0002082,2]
[346170722,1734763869721,-500.0,0.0002082,2]
[346170723,1734763869731,-578.88,0.0002082,2]
[346170724,1734763869741,-500.0,0.0002082,2]
[346170725,1734763869751,-500.0,0.0002082,2]
[346170726,1734763869762,-546.17,0.0002082,2]
[346170727,1734763869772,-500.0,0.0002082,2]
[346170728,1734763869782,-520.15,0.0002082,2]
[346170729,1734763869792,-500.0,0.0002082,2]
[346170730,1734763869803,-628.26,0.0002082,2]
[346170731,1734763869813,-529.73,0.0002082,2]
[346170732,1734763869825,-1052.04,0.0002082,2]
[346170733,1734763869835,-500.0,0.0002082,2]
[346170734,1734763869845,-607.01,0.0002082,2]
[346170735,1734763869857,-752.7,0.0002082,2]
[346170736,1734763869867,-944.17,0.0002082,2]
[346170737,1734763869877,-716.64,0.0002082,2]
[346170738,1734763869887,-829.23,0.0002082,2]
[346170739,1734763869897,-539.95,0.0002082,2]
[346170740,1734763869908,-739.19,0.0002082,2]
[346170741,1734763869919,-783.63,0.0002082,2]
[346170742,1734763869930,-500.0,0.0002082,2]
[346170743,1734763869940,-500.0,0.0002082,2]
[346170744,1734763869951,-1210.89,0.0002082,2]
[346170745,1734763869962,-512.97,0.0002082,2]
[346170746,1734763869973,-1023.43,0.0002082,2]
[346170747,1734763869983,-500.0,0.0002082,2]
[346170748,1734763869994,-500.0,0.0002082,2]
[346170749,1734763870004,-658.92,0.0002082,2]
[346170750,1734763870015,-985.94,0.0002082,2]
[346170751,1734763870025,-500.0,0.00020821,2]
[346170752,1734763870035,-522.13,0.00020821,2]
[346170753,1734763870046,-526.95,0.00020821,2]
[346170754,1734763870056,-500.0,0.00020821,2]
[346170755,1734763870066,-500.0,0.00020821,2]
[346170756,1734763870077,-753.3,0.00020821,2]
[346170757,1734763870087,-500.0,0.00020821,2]
[346170758,1734763870097,-500.0,0.00020821,2]
[346170759,1734763870107,-500.0,0.00020821,2]
[346170760,1734763870118,-500.0,0.00020821,2]
[346170761,1734763870127,-500.0,0.00020821,2]
[346170762,1734763870137,-500.0,0.00020821,2]
[346170763,1734763870147,-500.0,0.00020821,2]
[346170764,1734763870157,-817.72,0.00020821,2]
[346170765,1734763870168,-500.0,0.00020821,2]
[346170766,1734763870178,-500.0,0.00020821,2]
[346170767,1734763870188,-500.0,0.00020821,2]
[346170768,1734763870202,-500.0,0.00020821,2]
[346170769,1734763870213,-500.0,0.00020821,2]
[346170770,1734763870223,-619.92,0.00020821,2]
[346170771,1734763870233,-500.0,0.00020821,2]
[346170772,1734763870244,-500.0,0.00020821,2]
[346170773,1734763870257,-674.16,0.00020821,2]
[346170774,1734763870269,-500.0,0.00020821,2]
[346170775,1734763870279,-781.83,0.00020821,2]
[346170776,1734763870288,-500.0,0.00020821,2]
[346170777,1734763870299,-500.0,0.00020821,2]
[346170778,1734763870309,-500.0,0.00020821,2]
[346170779,1734763870321,-646.79,0.00020821,2]
[346170780,1734763870332,-500.0,0.00020821,2]
[346170781,1734763870343,-1000.0,0.00020821,30]
[346170782,1734763870352,-759.27,0.00020821,2]
[346170783,1734763870363,-500.0,0.00020821,2]
[346170784,1734763870373,-535.16,0.00020821,2]
[346170785,1734763870383,-500.0,0.00020821,2]
[346170786,1734763870393,-500.0,0.00020821,2]
[346170787,1734763870403,-1140.19,0.00020821,2]
[346170788,1734763870414,-500.0,0.00020821,2]
[346170789,1734763870423,-504.11,0.00020821,2]
[346170790,1734763870433,-500.0,0.00020821,2]
[346170791,1734763870443,-713.15,0.00020821,2]
[346170792,1734763870453,-546.00733393,0.00020821,2]
[346170793,1734763870464,-721.59,0.00020821,2]
[346170794,1734763870474,-500.0,0.00020821,2]
[346170795,1734763870484,-500.0,0.00020821,2]
[346170796,1734763870493,-1544.805157,0.00020821,2]
[346170797,1734763870503,-500.0,0.00020821,2]
[346170798,1734763870513,-925.78,0.00020821,2]
[346170799,1734763870524,-500.0,0.00020821,2]
[346170800,1734763870534,-500.0,0.00020821,2]
[346170801,1734763870544,-500.0,0.00020821,2]
[346170802,1734763870557,-1057.2639,0.00020821,2]
[346170803,1734763870566,-500.0,0.00020821,2]
[346170804,1734763870576,-500.0,0.00020821,2]
[346170805,1734763870586,-500.0,0.00020821,2]
[346170806,1734763870596,-549.38,0.00020821,2]
[346170807,1734763870607,-500.0,0.00020821,2]
[346170808,1734763870618,-500.0,0.00020821,2]
[346170809,1734763870628,-500.0,0.00020821,2]
[346170810,1734763870639,-575.46,0.00020821,2]
[346170811,1734763870649,-792.53,0.00020821,2]
[346170812,1734763870659,-500.0,0.00020821,2]
[346170813,1734763870669,-500.0,0.00020821,2]
[346170814,1734763870678,-635.22,0.00020821,2]
[346170815,1734763870688,-433.3012877,0.00020821,2]
[346170816,1734763870698,-880.04,0.00020821,2]
[346170817,1734763870709,-500.0,0.00020821,2]
[346170818,1734763870719,-500.0,0.00020821,2]
[346170819,1734763870729,-726.35,0.00020821,2]
[346170820,1734763870740,-1008.16,0.00020821,2]
[346170821,1734763870750,-500.0,0.00020821,2]
[346170822,1734763870759,-500.0,0.00020821,2]
[346170823,1734763870769,-589.35,0.00020821,2]
[346170824,1734763870779,-811.84,0.00020821,2]
[346170825,1734763870788,-500.0,0.00020821,2]
[346170826,1734763870798,-755.42,0.00020821,2]
[346170827,1734763870808,-433.28669227,0.00020821,2]
[346170828,1734763870820,-500.0,0.00020821,2]
[346170829,1734763870830,-2228.7,0.00020821,2]
[346170830,1734763870840,-500.0,0.00020821,2]
[346170831,1734763870850,-500.0,0.00020821,2]
[346170832,1734763870861,-502.76,0.00020821,2]
[346170833,1734763870870,-889.66,0.00020821,2]
[346170834,1734763870879,-995.12,0.00020821,2]
[346170835,1734763870889,-999.33,0.00020821,2]
[346170836,1734763870898,-500.0,0.00020821,2]
[346170837,1734763870908,-500.0,0.00020821,2]
[346170838,1734763870918,-500.0,0.00020821,2]
[346170839,1734763870928,-511.02,0.00020821,2]
[346170840,1734763870939,-500.0,0.00020821,2]
[346170841,1734763870949,-1503.52,0.00020821,2]
[346170842,1734763870958,-826.38,0.00020821,2]
[346170843,1734763870968,-526.88,0.00020821,2]
[346170844,1734763870977,-500.0,0.00020821,2]
[346170845,1734763870987,-845.27,0.00020821,2]
[346170846,1734763870996,-1849.16,0.00020821,2]
[346170847,1734763871006,-623.84,0.00020821,2]
[346170848,1734763871016,-500.0,0.00020821,2]
[346170849,1734763871026,-500.0,0.00020821,2]
[346170850,1734763871035,-658.52,0.00020821,2]
[346170851,1734763871217,-606.39,0.00020821,2]
[346170852,1734763871243,-500.0,0.00020821,2]
[346170853,1734763871254,-669.5,0.00020821,2]
[346170854,1734763871267,-500.0,0.00020821,2]
[346170855,1734763871276,-5337.2,0.00020821,2]
[346170856,1734763871286,-1119.97,0.00020821,2]
[346170857,1734763871295,-1317.83,0.00020821,2]
[346170858,1734763871306,-3834.33,0.00020821,2]
[346170859,1734763871317,-1210.11,0.00020821,2]
[346170860,1734763871326,-500.0,0.00020821,2]
[346170861,1734763871336,-500.0,0.00020821,2]
[346170862,1734763871345,-3128.08,0.00020821,2]
[346170863,1734763871354,-500.0,0.00020821,2]
[346170864,1734763871364,-500.0,0.00020821,2]
[346170865,1734763871374,-3039.32,0.00020821,2]
[346170866,1734763871383,-543.49,0.00020821,2]
[346170867,1734763871393,-1847.86,0.00020821,2]
[346170868,1734763871403,-500.0,0.00020821,2]
[346170869,1734763871412,-805.91,0.00020821,2]
[346170870,1734763871422,-500.0,0.00020821,2]
[346170871,1734763871431,-623.92,0.00020821,2]
[346170872,1734763871442,-506.6,0.00020821,2]
[346170873,1734763871451,-2527.65,0.00020821,2]
[346170874,1734763871461,-500.0,0.00020821,2]
[346170875,1734763871471,-947.44,0.00020821,2]
[346170876,1734763871481,-944.1,0.00020821,2]
[346170877,1734763871491,-500.0,0.00020821,2]
[346170878,1734763871500,-500.0,0.00020821,2]
[346170879,1734763871510,-500.0,0.00020821,2]
[346170880,1734763871520,-500.0,0.00020821,2]
[346170881,1734763871529,-500.0,0.00020821,2]
[346170882,1734763871539,-605.56677796,0.00020821,2]
[346170883,1734763871548,-861.65,0.00020821,2]
[346170884,1734763871557,-500.0,0.00020821,2]
[346170885,1734763871567,-540.73,0.00020821,2]
[346170886,1734763871578,-572.84,0.00020821,2]
[346170887,1734763871588,-582.48,0.00020821,2]
[346170888,1734763871598,-588.74,0.00020821,2]
[346170889,1734763871608,-500.0,0.00020821,2]
[346170890,1734763871618,-703.48,0.00020821,2]
[346170891,1734763871628,-500.0,0.00020821,2]
[346170892,1734763871637,-500.0,0.00020821,2]
[346170893,1734763871647,-901.63,0.00020821,2]
[346170894,1734763871656,-997.55,0.00020821,2]
[346170895,1734763871665,-799.68,0.00020821,2]
[346170896,1734763871675,-500.0,0.00020821,2]
[346170897,1734763871685,-561.21,0.00020821,2]
[346170898,1734763871696,-1229.39,0.00020821,2]
[346170899,1734763871706,-500.0,0.00020821,2]
[346170900,1734763871717,-632.53,0.00020821,2]
[346170901,1734763871728,-1931.34,0.00020821,2]
[346170902,1734763871739,-500.0,0.00020821,2]
[346170903,1734763871750,-1470.44,0.00020821,2]
[346170904,1734763871761,-500.0,0.00020821,2]
[346170905,1734763871772,-500.0,0.00020821,2]
[346170906,1734763871784,-500.0,0.00020821,2]
[346170907,1734763871795,-736.6,0.00020821,2]
[346170908,1734763871807,-500.0,0.00020821,2]
[346170909,1734763871820,-703.2,0.00020821,2]
[346170910,1734763871837,-510.74531969,0.00020821,2]
[346170911,1734763871856,-1406.58,0.00020821,2]
[346170912,1734763871867,-1544.85,0.00020821,2]
[346170913,1734763871879,-665.66,0.00020821,2]
[346170914,1734763871890,-514.28,0.00020821,2]
[346170915,1734763871902,-500.0,0.00020821,2]
[346170916,1734763871913,-795.88,0.00020821,2]
[346170917,1734763871925,-500.0,0.00020821,2]
[346170918,1734763871936,-761.21,0.00020821,2]
[346170919,1734763871947,-1739.03,0.00020821,2]
[346170920,1734763871960,-702.19,0.00020821,2]
[346170921,1734763871971,-500.0,0.00020821,2]
[346170922,1734763871982,-1021.76,0.00020821,2]
[346170923,1734763871993,-500.0,0.00020821,2]
[346170924,1734763872005,-500.0,0.00020821,2]
[346170925,1734763872019,-519.26069598,0.00020821,2]
[346170926,1734763872030,-859.2,0.00020821,2]
[346170927,1734763872042,-1193.73,0.00020821,2]
[346170928,1734763872053,-500.0,0.00020821,2]
[346170929,1734763872066,-500.0,0.00020821,2]
[346170930,1734763872094,-632.4,0.00020821,2]
[346170931,1734763872105,-2294.66,0.00020821,2]
[346170932,1734763872116,-806.9,0.00020821,2]
[346170933,1734763872127,-1021.18,0.00020821,2]
[346170934,1734763872139,-1013.35,0.00020821,2]
[346170935,1734763872150,-500.0,0.00020821,2]
[346170936,1734763872161,-632.58,0.00020821,2]
[346170937,1734763872172,-2927.04,0.00020821,2]
[346170938,1734763872184,-500.0,0.00020821,2]
[346170939,1734763872194,-518.58,0.00020821,2]
[346170940,1734763872205,-647.88,0.00020821,2]
[346170941,1734763872217,-4561.25,0.00020821,2]
[346170942,1734763872227,-187.88538848,0.00020821,2]
[346170943,1734763872239,-872.93,0.00020821,2]
[346170944,1734763872251,-885.58,0.00020821,2]
[346170945,1734763872267,-1603.4,0.00020821,2]
[346170946,1734763872279,-500.0,0.00020821,2]
[346170947,1734763872292,-1346.86,0.00020821,2]
[346170948,1734763872303,-500.0,0.00020821,2]
[346170949,1734763872315,-500.0,0.00020821,2]
[346170950,1734763872341,-763.45,0.00020821,2]
[346170951,1734763872356,-984.85,0.00020821,2]
[346170952,1734763872368,-500.0,0.00020821,2]
[346170953,1734763872382,-873.04,0.00020821,2]
[346170954,1734763872393,-500.0,0.00020821,2]
[346170955,1734763872403,-500.0,0.00020821,2]
[346170956,1734763872415,-620.97,0.00020821,2]
[346170957,1734763872426,-733.9,0.00020821,2]
[346170958,1734763872437,-500.0,0.00020821,2]
[346170959,1734763872448,-1060.44,0.00020821,2]
[346170960,1734763872459,-1223.12,0.00020821,2]
[346170961,1734763872469,-500.0,0.00020821,2]
[346170962,1734763872480,-633.71,0.00020821,2]
[346170963,1734763872491,-1063.84,0.00020821,2]
[346170964,1734763872501,-500.0,0.00020821,2]
[346170965,1734763872513,-500.0,0.00020821,2]
[346170966,1734763872523,-6034.63,0.00020821,2]
[346170967,1734763872534,-842.49,0.00020821,2]
[346170968,1734763872545,-500.0,0.00020821,2]
[346170969,1734763872556,-500.0,0.00020821,2]
[346170970,1734763872573,-7492.81,0.00020821,2]
[346170971,1734763872593,-223.03185742,0.00020821,2]
[346170972,1734763872605,-500.0,0.00020821,2]
[346170973,1734763872617,-744.03,0.00020821,2]
[346170974,1734763872629,-946.91,0.00020821,2]
[346170975,1734763872641,-512.74,0.00020821,2]
[346170976,1734763872651,-894.54,0.00020821,2]
[346170977,1734763872663,-630.38,0.00020821,2]
[346170978,1734763872674,-500.0,0.00020821,2]
[346170979,1734763872686,-513.14,0.00020821,2]
[346170980,1734763872700,-500.0,0.00020821,2]
[346170981,1734763872711,-569.68,0.00020821,2]
[346170982,1734763872722,-2074.71,0.00020821,2]
[346170983,1734763872733,-1539.27,0.00020821,2]
[346170984,1734763872744,-500.0,0.00020821,2]
[346170985,1734763872756,-860.01,0.00020821,2]
[346170986,1734763872767,-925.87,0.00020821,2]
[346170987,1734763872777,-500.0,0.00020821,2]
[346170988,1734763872789,-500.0,0.00020821,2]
[346170989,1734763872806,-2324.7,0.00020821,2]
[346170990,1734763872824,-1111.8,0.00020821,2]
[346170991,1734763872837,-500.0,0.00020821,2]
[346170992,1734763872849,-500.0,0.00020821,2]
[346170993,1734763872860,-2018.78,0.00020821,2]
[346170994,1734763872871,-500.0,0.00020821,2]
[346170995,1734763872881,-167.35,0.00020913,2]
[346170996,1734763872893,-150.93681909,0.00020946,2]
[346170997,1734763872908,-150.0,0.00020994,4]
[346170998,1734763872920,-37038.8795,0.00020995,2]
[346170999,1734763872933,-24183.0,0.00021,2]
[346171000,1734763872945,-2722.18434235,0.00021015,2]
[346171001,1734763872956,-500.0,0.00021094,2]
[346171002,1734763872968,-500.0,0.00021094,2]
[346171003,1734763872979,-787.7,0.00021094,2]
[346171004,1734763872990,-500.0,0.00021094,2]
[346171005,1734763873001,-722.15,0.00021094,2]
[346171006,1734763873229,-598.48,0.00021094,2]
[346171007,1734763873240,-589.12,0.00021094,2]
[346171008,1734763873252,-746.52,0.00021094,2]
[346171009,1734763873271,-500.0,0.00021094,2]
[346171010,1734763873283,-214.18526022,0.00021094,2]
[346171011,1734763873293,-500.0,0.00021094,2]
[346171012,1734763873306,-500.0,0.00021094,2]
[346171013,1734763873321,-579.24,0.00021094,2]
[346171014,1734763873335,-500.0,0.00021094,2]
[346171015,1734763873347,-709.84,0.00021094,2]
[346171016,1734763873360,-704.07,0.00021094,2]
[346171017,1734763873372,-656.8,0.00021094,2]
[346171018,1734763873385,-772.15,0.00021094,2]
[346171019,1734763873400,-500.0,0.00021094,2]
[346171020,1734763873411,-500.0,0.00021094,2]
[346171021,1734763873425,-500.0,0.00021094,2]
[346171022,1734763873436,-500.0,0.00021094,2]
[346171023,1734763873447,-500.0,0.00021094,2]
[346171024,1734763873457,-1124.77,0.00021094,2]
[346171025,1734763873468,-512.85,0.00021094,2]
[346171026,1734763873480,-1044.57,0.00021094,2]
[346171027,1734763873493,-577.68,0.00021094,2]
[346171028,1734763873504,-500.0,0.00021094,2]
[346171029,1734763873515,-500.0,0.00021094,2]
[346171030,1734763873529,-685.56,0.00021094,2]
[346171031,1734763873541,-687.33,0.00021094,2]
[346171032,1734763873554,-727.24,0.00021094,2]
[346171033,1734763873566,-500.0,0.00021094,2]
[346171034,1734763873583,-500.0,0.00021094,2]
[346171035,1734763873595,-671.56,0.00021094,2]
[346171036,1734763873607,-310.45685144,0.00021094,2]
[346171037,1734763873618,-500.0,0.00021094,2]
[346171038,1734763873631,-604.9,0.00021094,2]